[Event "*** Titled Tuesday Blitz"]
[Site "Chess.com"]
[Date "2020.05.19"]
[Round "7"]
[White "bakki78"]
[Black "OparinGrigoriy"]
[Result "1/2-1/2"]
[WhiteElo "2761"]
[BlackElo "2905"]
[TimeControl "180+1"]
[EndTime "13:20:06 PDT"]
[Termination "Game drawn by repetition"]

1. e4 {[%clk 0:03:00.4]} 1... e5 {[%clk 0:03:00.2]} 2. Nf3 {[%clk 0:02:59.6]}
2... Nc6 {[%clk 0:03:00.9]} 3. Bb5 {[%clk 0:02:59.6]} 3... a6 {[%clk 0:03:01.5]}
4. Ba4 {[%clk 0:02:59.6]} 4... Nf6 {[%clk 0:03:02.2]} 5. Nc3 {[%clk 0:02:59.7]}
5... Bc5 {[%clk 0:02:37.8]} 6. Bxc6 {[%clk 0:02:58.9]} 6... dxc6 {[%clk
0:02:37.8]} 7. d3 {[%clk 0:02:59.5]} 7... Bd6 {[%clk 0:02:28.6]} 8. O-O {[%clk
0:02:55]} 8... O-O {[%clk 0:02:26.2]} 9. Qe2 {[%clk 0:02:43.2]} 9... Nd7 {[%clk
0:02:22.9]} 10. Nd1 {[%clk 0:02:42.8]} 10... Re8 {[%clk 0:02:18.7]} 11. Ne3
{[%clk 0:02:42.8]} 11... Nf8 {[%clk 0:02:18.8]} 12. Nf5 {[%clk 0:02:41.4]} 12...
f6 {[%clk 0:02:11.5]} 13. h4 {[%clk 0:02:33.9]} 13... g6 {[%clk 0:02:03.4]} 14.
Nh6+ {[%clk 0:02:23.4]} 14... Kg7 {[%clk 0:01:59.1]} 15. h5 {[%clk 0:02:23.2]}
15... Ne6 {[%clk 0:01:45.4]} 16. g3 {[%clk 0:02:23.3]} 16... Qd7 {[%clk
0:01:34.9]} 17. c3 {[%clk 0:02:20.8]} 17... c5 {[%clk 0:01:29.5]} 18. hxg6
{[%clk 0:01:27.7]} 18... hxg6 {[%clk 0:01:28.3]} 19. Nh4 {[%clk 0:01:28.2]}
19... Ng5 {[%clk 0:01:18.3]} 20. N6f5+ {[%clk 0:01:24]} 20... gxf5 {[%clk
0:01:17.8]} 21. Bxg5 {[%clk 0:01:24.4]} 21... fxg5 {[%clk 0:01:11.8]} 22. Nxf5+
{[%clk 0:01:23.6]} 22... Kg6 {[%clk 0:01:10]} 23. Kg2 {[%clk 0:01:22.4]} 23...
Qf7 {[%clk 0:00:56.8]} 24. Rh1 {[%clk 0:01:10.7]} 24... Bxf5 {[%clk 0:00:56]}
25. exf5+ {[%clk 0:01:09]} 25... Kf6 {[%clk 0:00:56.7]} 26. Rh6+ {[%clk
0:01:06.3]} 26... Ke7 {[%clk 0:00:57.1]} 27. Qe4 {[%clk 0:01:05.5]} 27... Rh8
{[%clk 0:00:44.1]} 28. Rah1 {[%clk 0:01:00.4]} 28... Rxh6 {[%clk 0:00:39.2]} 29.
Rxh6 {[%clk 0:01:00.1]} 29... Rf8 {[%clk 0:00:26.2]} 30. g4 {[%clk 0:00:48.3]}
30... c6 {[%clk 0:00:19.8]} 31. Re6+ {[%clk 0:00:42.2]} 31... Kd7 {[%clk
0:00:20.2]} 32. d4 {[%clk 0:00:42.7]} 32... exd4 {[%clk 0:00:15.8]} 33. cxd4
{[%clk 0:00:42.1]} 33... Re8 {[%clk 0:00:13.8]} 34. dxc5 {[%clk 0:00:42.2]}
34... Bxc5 {[%clk 0:00:08.3]} 35. Qc4 {[%clk 0:00:41.5]} 35... Rxe6 {[%clk
0:00:07]} 36. fxe6+ {[%clk 0:00:41.3]} 36... Qxe6 {[%clk 0:00:07.9]} 37. Qxc5
{[%clk 0:00:41.7]} 37... Qxg4+ {[%clk 0:00:08.7]} 38. Kh2 {[%clk 0:00:39.6]}
38... Qf4+ {[%clk 0:00:09]} 39. Kg1 {[%clk 0:00:39.5]} 39... Qg4+ {[%clk
0:00:09.4]} 40. Kh2 {[%clk 0:00:39.5]} 40... Qh4+ {[%clk 0:00:09.6]} 41. Kg1
{[%clk 0:00:38.4]} 41... Qg4+ {[%clk 0:00:10.2]} 42. Kh2 {[%clk 0:00:38.6]}
1/2-1/2

[Event "*** Titled Tuesday Blitz"]
[Site "Chess.com"]
[Date "2020.05.19"]
[Round "7"]
[White "SanchezKelvin"]
[Black "quesfr"]
[Result "1-0"]
[WhiteElo "2479"]
[BlackElo "2283"]
[TimeControl "180+1"]
[EndTime "13:20:08 PDT"]
[Termination "SanchezKelvin won by resignation"]

1. d4 {[%clk 0:03:00.9]} 1... d5 {[%clk 0:02:59.5]} 2. c4 {[%clk 0:03:00.9]}
2... e6 {[%clk 0:02:59.3]} 3. Nf3 {[%clk 0:03:01]} 3... Nf6 {[%clk 0:02:58.6]}
4. Nc3 {[%clk 0:03:00.5]} 4... Be7 {[%clk 0:02:58.3]} 5. Bg5 {[%clk 0:02:59.4]}
5... Nbd7 {[%clk 0:02:54.7]} 6. e3 {[%clk 0:02:59]} 6... h6 {[%clk 0:02:54.6]}
7. Bxf6 {[%clk 0:02:58.7]} 7... Nxf6 {[%clk 0:02:53.5]} 8. Qc2 {[%clk
0:02:59.6]} 8... dxc4 {[%clk 0:02:16]} 9. Bxc4 {[%clk 0:02:58.9]} 9... c5 {[%clk
0:02:16.3]} 10. O-O-O {[%clk 0:02:54.2]} 10... Qa5 {[%clk 0:02:11.5]} 11. Bb5+
{[%clk 0:02:35.8]} 11... Bd7 {[%clk 0:02:10.3]} 12. Bxd7+ {[%clk 0:02:35.5]}
12... Nxd7 {[%clk 0:02:10.2]} 13. d5 {[%clk 0:02:35.5]} 13... exd5 {[%clk
0:01:57.2]} 14. Nxd5 {[%clk 0:02:31.7]} 14... Nf6 {[%clk 0:01:57.2]} 15. Nxe7
{[%clk 0:02:25.7]} 15... Kxe7 {[%clk 0:01:58.1]} 16. Kb1 {[%clk 0:02:25.2]}
16... Rhd8 {[%clk 0:01:54.1]} 17. Ne5 {[%clk 0:02:20.2]} 17... Qc7 {[%clk
0:01:43.5]} 18. f4 {[%clk 0:02:14.9]} 18... b6 {[%clk 0:01:29.4]} 19. Qc4 {[%clk
0:02:09.4]} 19... Kf8 {[%clk 0:01:23.9]} 20. g4 {[%clk 0:01:54]} 20... Ne8
{[%clk 0:01:15.1]} 21. Qe4 {[%clk 0:01:38.3]} 21... Rxd1+ {[%clk 0:00:55.5]} 22.
Rxd1 {[%clk 0:01:37.3]} 22... Rd8 {[%clk 0:00:56.1]} 23. Rc1 {[%clk 0:01:07.4]}
23... Qe7 {[%clk 0:00:26.3]} 24. Qh7 {[%clk 0:01:00.3]} 24... Nf6 {[%clk
0:00:25.8]} 25. Qf5 {[%clk 0:00:47.5]} 25... Kg8 {[%clk 0:00:17.2]} 26. Nc6
{[%clk 0:00:45]} 26... Qd7 {[%clk 0:00:07.4]} 27. Nxd8 {[%clk 0:00:44.1]} 27...
Qxd8 {[%clk 0:00:08.3]} 28. g5 {[%clk 0:00:42.7]} 28... hxg5 {[%clk 0:00:08.5]}
29. fxg5 {[%clk 0:00:42.5]} 29... Nh5 {[%clk 0:00:08.6]} 30. h4 {[%clk
0:00:32.8]} 30... g6 {[%clk 0:00:08.8]} 31. Qc2 {[%clk 0:00:29.9]} 31... Qd6
{[%clk 0:00:07.6]} 32. Rd1 {[%clk 0:00:29.1]} 32... Qg3 {[%clk 0:00:07.8]} 33.
Qc3 {[%clk 0:00:26.8]} 33... Qxh4 {[%clk 0:00:07]} 34. Rd8+ {[%clk 0:00:25.8]}
1-0

[Event "*** Titled Tuesday Blitz"]
[Site "Chess.com"]
[Date "2020.05.19"]
[Round "7"]
[White "Konovalova_Vera"]
[Black "Kopytkin"]
[Result "1-0"]
[WhiteElo "2162"]
[BlackElo "2319"]
[TimeControl "180+1"]
[EndTime "13:20:08 PDT"]
[Termination "Konovalova_Vera won on time"]

1. d4 {[%clk 0:03:00.9]} 1... d5 {[%clk 0:02:59.3]} 2. Nf3 {[%clk 0:03:00]} 2...
Bf5 {[%clk 0:02:58.6]} 3. e3 {[%clk 0:02:59.4]} 3... e6 {[%clk 0:02:58.8]} 4.
Bd3 {[%clk 0:02:59.6]} 4... Nf6 {[%clk 0:02:58.5]} 5. Bxf5 {[%clk 0:02:58.7]}
5... exf5 {[%clk 0:02:58.8]} 6. b3 {[%clk 0:02:55.5]} 6... c6 {[%clk 0:02:57.2]}
7. Bb2 {[%clk 0:02:55.6]} 7... Bb4+ {[%clk 0:02:53.4]} 8. c3 {[%clk 0:02:54.7]}
8... Bd6 {[%clk 0:02:53.4]} 9. Nbd2 {[%clk 0:02:54.3]} 9... Nbd7 {[%clk
0:02:53.4]} 10. O-O {[%clk 0:02:53.5]} 10... O-O {[%clk 0:02:53]} 11. c4 {[%clk
0:02:53.1]} 11... Re8 {[%clk 0:02:52.8]} 12. Qc2 {[%clk 0:02:43.7]} 12... g6
{[%clk 0:02:51.9]} 13. Rac1 {[%clk 0:02:40]} 13... Qe7 {[%clk 0:02:51.2]} 14.
Qd3 {[%clk 0:02:35.4]} 14... Ne4 {[%clk 0:02:51.1]} 15. cxd5 {[%clk 0:02:32.5]}
15... cxd5 {[%clk 0:02:50.6]} 16. Qb5 {[%clk 0:02:24.5]} 16... Ndf6 {[%clk
0:02:49.6]} 17. Nxe4 {[%clk 0:02:15.2]} 17... fxe4 {[%clk 0:02:41.6]} 18. Ne5
{[%clk 0:02:12.1]} 18... h5 {[%clk 0:02:36.6]} 19. h3 {[%clk 0:02:07.7]} 19...
Rac8 {[%clk 0:02:15.8]} 20. a4 {[%clk 0:01:56.3]} 20... Kg7 {[%clk 0:02:09.1]}
21. Kh1 {[%clk 0:01:53.7]} 21... g5 {[%clk 0:01:52.7]} 22. g3 {[%clk 0:01:42.5]}
22... Kh6 {[%clk 0:00:39.1]} 23. Kg2 {[%clk 0:01:37.6]} 23... Kg7 {[%clk
0:00:38.5]} 24. a5 {[%clk 0:01:24.7]} 24... Red8 {[%clk 0:00:38.5]} 25. a6
{[%clk 0:01:23.7]} 25... bxa6 {[%clk 0:00:38.5]} 26. Qxa6 {[%clk 0:01:20.5]}
26... Re8 {[%clk 0:00:26.9]} 27. Rc6 {[%clk 0:01:04.3]} 27... Rxc6 {[%clk
0:00:25.7]} 28. Qxc6 {[%clk 0:01:03.7]} 28... Qc7 {[%clk 0:00:22.7]} 29. Qxc7
{[%clk 0:01:03.2]} 29... Bxc7 {[%clk 0:00:22.5]} 30. Rc1 {[%clk 0:01:01.6]}
30... Bd6 {[%clk 0:00:22.7]} 31. Rc6 {[%clk 0:01:00.9]} 31... Rd8 {[%clk
0:00:23.1]} 32. Bc3 {[%clk 0:00:59.1]} 32... Kf8 {[%clk 0:00:21.9]} 33. Ba5
{[%clk 0:00:57.4]} 33... Be7 {[%clk 0:00:11]} 34. Bxd8 {[%clk 0:00:56.4]} 34...
Bxd8 {[%clk 0:00:11.4]} 35. Rc8 {[%clk 0:00:53.7]} 35... Ke7 {[%clk 0:00:11.2]}
36. Ra8 {[%clk 0:00:53.1]} 36... Bb6 {[%clk 0:00:08.9]} 37. Nc6+ {[%clk
0:00:51.2]} 37... Ke6 {[%clk 0:00:07.8]} 38. Nxa7 {[%clk 0:00:49.5]} 38... Ne8
{[%clk 0:00:06.3]} 39. Rxe8+ {[%clk 0:00:46.8]} 1-0

[Event "*** Titled Tuesday Blitz"]
[Site "Chess.com"]
[Date "2020.05.19"]
[Round "7"]
[White "giantslayer83"]
[Black "GregShahade"]
[Result "1-0"]
[WhiteElo "2682"]
[BlackElo "2507"]
[TimeControl "180+1"]
[EndTime "13:20:10 PDT"]
[Termination "giantslayer83 won by resignation"]

1. d4 {[%clk 0:03:00.7]} 1... Nf6 {[%clk 0:02:59.8]} 2. Bg5 {[%clk 0:03:00]}
2... c5 {[%clk 0:02:58.7]} 3. d5 {[%clk 0:02:56.1]} 3... Ne4 {[%clk 0:02:58.2]}
4. Bc1 {[%clk 0:02:52.9]} 4... g6 {[%clk 0:02:55.7]} 5. f3 {[%clk 0:02:52.8]}
5... Nd6 {[%clk 0:02:56.1]} 6. e4 {[%clk 0:02:52.3]} 6... Bg7 {[%clk 0:02:56.7]}
7. Nc3 {[%clk 0:02:47.8]} 7... O-O {[%clk 0:02:56.5]} 8. Be3 {[%clk 0:02:48]}
8... f5 {[%clk 0:02:56.7]} 9. Nge2 {[%clk 0:02:32.8]} 9... fxe4 {[%clk
0:02:55.1]} 10. fxe4 {[%clk 0:02:32.8]} 10... Qa5 {[%clk 0:02:43]} 11. Qd3
{[%clk 0:02:27.9]} 11... Nf7 {[%clk 0:02:33.2]} 12. Ng3 {[%clk 0:02:15.3]} 12...
d6 {[%clk 0:02:21.5]} 13. Qd2 {[%clk 0:02:12.3]} 13... Nd7 {[%clk 0:02:14.9]}
14. Be2 {[%clk 0:02:08.8]} 14... Nfe5 {[%clk 0:02:15.1]} 15. Bh6 {[%clk
0:02:01.5]} 15... Bxh6 {[%clk 0:02:07.8]} 16. Qxh6 {[%clk 0:02:00.6]} 16... Qb4
{[%clk 0:02:08.3]} 17. O-O-O {[%clk 0:01:56.8]} 17... Nb6 {[%clk 0:02:03.3]} 18.
a3 {[%clk 0:01:56.1]} 18... Qa5 {[%clk 0:02:01.3]} 19. h4 {[%clk 0:01:47.4]}
19... Nf7 {[%clk 0:01:28.5]} 20. Qe3 {[%clk 0:01:46.7]} 20... h5 {[%clk
0:01:20.7]} 21. Rdf1 {[%clk 0:01:32]} 21... Nd7 {[%clk 0:01:20.5]} 22. Bxh5
{[%clk 0:01:21.1]} 22... gxh5 {[%clk 0:01:18.5]} 23. Nxh5 {[%clk 0:01:22]} 23...
Nde5 {[%clk 0:01:06.1]} 24. Qg3+ {[%clk 0:00:58.8]} 24... Bg4 {[%clk 0:01:05.6]}
25. Rf4 {[%clk 0:00:58.3]} 25... Nh6 {[%clk 0:01:02.5]} 26. Rhf1 {[%clk
0:00:54.6]} 26... Rxf4 {[%clk 0:00:58]} 27. Nxf4 {[%clk 0:00:55.5]} 27... Rf8
{[%clk 0:00:53.7]} 28. h5 {[%clk 0:00:55.3]} 28... Qd8 {[%clk 0:00:48.1]} 29.
Qh4 {[%clk 0:00:54.6]} 29... e6 {[%clk 0:00:40.8]} 30. Qxd8 {[%clk 0:00:54.3]}
30... Rxd8 {[%clk 0:00:41]} 31. dxe6 {[%clk 0:00:55.2]} 31... Rf8 {[%clk
0:00:34.5]} 32. e7 {[%clk 0:00:48.1]} 32... Re8 {[%clk 0:00:33.4]} 33. Ncd5
{[%clk 0:00:47.8]} 33... Nc6 {[%clk 0:00:26]} 34. Nf6+ {[%clk 0:00:42.4]} 34...
Kf7 {[%clk 0:00:24.7]} 35. Ng6 {[%clk 0:00:24]} 35... Be6 {[%clk 0:00:14.8]} 36.
Nxe8+ {[%clk 0:00:23.6]} 36... Kxe8 {[%clk 0:00:15.1]} 37. Rf8+ {[%clk
0:00:23.6]} 37... Kd7 {[%clk 0:00:14.5]} 38. e8=Q+ {[%clk 0:00:23.7]} 38... Kc7
{[%clk 0:00:15]} 39. Qxe6 {[%clk 0:00:23.9]} 1-0

[Event "*** Titled Tuesday Blitz"]
[Site "Chess.com"]
[Date "2020.05.19"]
[Round "7"]
[White "stolencandy13"]
[Black "AlexTriapishko"]
[Result "0-1"]
[WhiteElo "2556"]
[BlackElo "2728"]
[TimeControl "180+1"]
[EndTime "13:20:12 PDT"]
[Termination "AlexTriapishko won by resignation"]

1. e4 {[%clk 0:03:00.9]} 1... e5 {[%clk 0:02:51.4]} 2. Nf3 {[%clk 0:03:00.8]}
2... Nc6 {[%clk 0:02:50.7]} 3. Nc3 {[%clk 0:03:01.3]} 3... Nf6 {[%clk
0:02:49.7]} 4. d4 {[%clk 0:03:01.9]} 4... Bb4 {[%clk 0:02:50.2]} 5. d5 {[%clk
0:02:58.1]} 5... Ne7 {[%clk 0:02:49.3]} 6. Bd3 {[%clk 0:02:54.7]} 6... Bxc3+
{[%clk 0:02:49.1]} 7. bxc3 {[%clk 0:02:54.7]} 7... d6 {[%clk 0:02:50]} 8. h3
{[%clk 0:02:54.1]} 8... O-O {[%clk 0:02:50.9]} 9. Rb1 {[%clk 0:02:51.8]} 9... b6
{[%clk 0:02:51.3]} 10. O-O {[%clk 0:02:50.6]} 10... Nd7 {[%clk 0:02:44.8]} 11.
Nh4 {[%clk 0:02:44.8]} 11... Nc5 {[%clk 0:02:29.8]} 12. Qh5 {[%clk 0:02:23.7]}
12... f6 {[%clk 0:02:12.4]} 13. f4 {[%clk 0:02:10.7]} 13... Qe8 {[%clk
0:02:04.3]} 14. Qf3 {[%clk 0:02:03.7]} 14... exf4 {[%clk 0:02:01.2]} 15. Bxf4
{[%clk 0:01:59.2]} 15... Ng6 {[%clk 0:01:57.5]} 16. Nxg6 {[%clk 0:01:58.7]}
16... hxg6 {[%clk 0:01:58.4]} 17. c4 {[%clk 0:01:50]} 17... g5 {[%clk 0:01:55]}
18. Be3 {[%clk 0:01:47.5]} 18... Nd7 {[%clk 0:01:54.5]} 19. Qg3 {[%clk
0:01:34.9]} 19... Ne5 {[%clk 0:01:50.4]} 20. Bd4 {[%clk 0:01:30.3]} 20... Bd7
{[%clk 0:01:47.3]} 21. Rf2 {[%clk 0:01:28]} 21... Qh5 {[%clk 0:01:40.5]} 22.
Rbf1 {[%clk 0:01:24.6]} 22... Rae8 {[%clk 0:01:38.2]} 23. Be2 {[%clk 0:01:24.1]}
23... Qh4 {[%clk 0:01:34.2]} 24. Qxh4 {[%clk 0:01:05.7]} 24... gxh4 {[%clk
0:01:35.1]} 25. Bh5 {[%clk 0:01:00.5]} 25... Re7 {[%clk 0:01:27.6]} 26. Rf4
{[%clk 0:00:56.5]} 26... Nxc4 {[%clk 0:01:13.4]} 27. Rxh4 {[%clk 0:00:54.9]}
27... g5 {[%clk 0:01:09.9]} 28. Bxf6 {[%clk 0:00:30.3]} 28... Rxf6 {[%clk
0:01:09.2]} 29. Rxf6 {[%clk 0:00:30.5]} 29... gxh4 {[%clk 0:01:09.7]} 30. Rf4
{[%clk 0:00:25.3]} 30... Rh7 {[%clk 0:01:03.6]} 31. Rxh4 {[%clk 0:00:19.6]}
31... Ne5 {[%clk 0:01:03.9]} 32. g3 {[%clk 0:00:16.7]} 32... Kg7 {[%clk
0:01:04.2]} 33. Kf2 {[%clk 0:00:14.4]} 33... Rh6 {[%clk 0:01:02.6]} 34. Ke3
{[%clk 0:00:13.3]} 34... Ng6 {[%clk 0:01:01.8]} 35. Bxg6 {[%clk 0:00:12.8]}
35... Rxh4 {[%clk 0:01:02.7]} 36. gxh4 {[%clk 0:00:13.1]} 36... Kxg6 {[%clk
0:01:03.1]} 37. Kf4 {[%clk 0:00:13.6]} 37... Kf6 {[%clk 0:01:00.5]} 38. h5
{[%clk 0:00:13.4]} 38... Bxh3 {[%clk 0:01:01]} 39. c3 {[%clk 0:00:13.3]} 39...
Bg2 {[%clk 0:00:58.8]} 40. a3 {[%clk 0:00:13.3]} 40... Bh1 {[%clk 0:00:56.5]}
41. h6 {[%clk 0:00:13.2]} 41... Kg6 {[%clk 0:00:56.1]} 42. e5 {[%clk 0:00:13.2]}
42... Bxd5 {[%clk 0:00:55.7]} 0-1

[Event "*** Titled Tuesday Blitz"]
[Site "Chess.com"]
[Date "2020.05.19"]
[Round "7"]
[White "ViktoriyaTarasova"]
[Black "Koalaskakistis"]
[Result "1-0"]
[WhiteElo "2297"]
[BlackElo "2462"]
[TimeControl "180+1"]
[EndTime "13:20:13 PDT"]
[Termination "ViktoriyaTarasova won by resignation"]

1. d4 {[%clk 0:03:00.9]} 1... f5 {[%clk 0:02:57.9]} 2. c4 {[%clk 0:03:00.2]}
2... Nf6 {[%clk 0:02:57.9]} 3. g3 {[%clk 0:02:59.2]} 3... g6 {[%clk 0:02:57.7]}
4. Bg2 {[%clk 0:02:58.9]} 4... Bg7 {[%clk 0:02:58.6]} 5. Nf3 {[%clk 0:02:58.6]}
5... O-O {[%clk 0:02:58.8]} 6. O-O {[%clk 0:02:59.2]} 6... d6 {[%clk 0:02:59.2]}
7. Nc3 {[%clk 0:02:57.7]} 7... Qe8 {[%clk 0:02:58.1]} 8. Qb3 {[%clk 0:02:58]}
8... c6 {[%clk 0:02:49.1]} 9. Re1 {[%clk 0:02:53.6]} 9... Ne4 {[%clk 0:02:44.1]}
10. Qc2 {[%clk 0:02:38.5]} 10... Nxc3 {[%clk 0:02:39.5]} 11. bxc3 {[%clk
0:02:38]} 11... e5 {[%clk 0:02:39.2]} 12. e4 {[%clk 0:02:26.5]} 12... f4 {[%clk
0:02:33.9]} 13. Ba3 {[%clk 0:02:23.3]} 13... Qe6 {[%clk 0:02:09.7]} 14. dxe5
{[%clk 0:02:15.8]} 14... dxe5 {[%clk 0:01:56.5]} 15. Bxf8 {[%clk 0:02:14.5]}
15... Bxf8 {[%clk 0:01:57.4]} 16. Rad1 {[%clk 0:02:06.6]} 16... Nd7 {[%clk
0:01:53.4]} 17. gxf4 {[%clk 0:01:54]} 17... exf4 {[%clk 0:01:51.5]} 18. e5
{[%clk 0:01:51.8]} 18... Bc5 {[%clk 0:01:41.6]} 19. Nd4 {[%clk 0:01:43.7]} 19...
Qg4 {[%clk 0:01:32.6]} 20. h3 {[%clk 0:01:39]} 20... Qh4 {[%clk 0:01:21.4]} 21.
e6 {[%clk 0:01:28.4]} 21... Nf6 {[%clk 0:01:19.8]} 22. Nf3 {[%clk 0:01:27.2]}
22... Qh6 {[%clk 0:01:05.3]} 23. Rd8+ {[%clk 0:01:26.1]} 23... Kg7 {[%clk
0:01:00.7]} 24. e7 {[%clk 0:01:19.3]} 24... Bf5 {[%clk 0:01:00]} 25. Qd2 {[%clk
0:01:10.8]} 25... Bxh3 {[%clk 0:00:39.4]} 26. Rxa8 {[%clk 0:01:01.6]} 26... Qh5
{[%clk 0:00:38.9]} 27. Re5 {[%clk 0:00:51.3]} 27... Qg4 {[%clk 0:00:26.4]} 28.
Rg5 {[%clk 0:00:51.1]} 28... Qe6 {[%clk 0:00:26.2]} 29. e8=Q {[%clk 0:00:38.9]}
29... Nxe8 {[%clk 0:00:22.7]} 30. Rxe8 {[%clk 0:00:36.6]} 30... Qxe8 {[%clk
0:00:20.5]} 31. Bxh3 {[%clk 0:00:36.5]} 31... Be7 {[%clk 0:00:16.9]} 32. Re5
{[%clk 0:00:36.4]} 32... Qf8 {[%clk 0:00:13.2]} 33. Qd7 {[%clk 0:00:36.5]} 33...
Kh8 {[%clk 0:00:12.8]} 34. Rxe7 {[%clk 0:00:36.3]} 1-0

[Event "*** Titled Tuesday Blitz"]
[Site "Chess.com"]
[Date "2020.05.19"]
[Round "7"]
[White "AsaHoffmann"]
[Black "jtayar88"]
[Result "1-0"]
[WhiteElo "2418"]
[BlackElo "2542"]
[TimeControl "180+1"]
[EndTime "13:20:15 PDT"]
[Termination "AsaHoffmann won on time"]

1. d4 {[%clk 0:02:57]} 1... Nf6 {[%clk 0:02:49.2]} 2. Bg5 {[%clk 0:02:55.7]}
2... e6 {[%clk 0:02:36.4]} 3. Nd2 {[%clk 0:02:54.5]} 3... c5 {[%clk 0:02:35.3]}
4. e3 {[%clk 0:02:53.8]} 4... b6 {[%clk 0:02:30.9]} 5. Ngf3 {[%clk 0:02:52.5]}
5... Bb7 {[%clk 0:02:30.9]} 6. Bd3 {[%clk 0:02:50]} 6... d6 {[%clk 0:02:27.6]}
7. Qe2 {[%clk 0:02:48.6]} 7... Be7 {[%clk 0:02:25.1]} 8. O-O {[%clk 0:02:47.6]}
8... O-O {[%clk 0:02:22.2]} 9. c3 {[%clk 0:02:45.3]} 9... a6 {[%clk 0:02:15.6]}
10. a4 {[%clk 0:02:44.1]} 10... Nbd7 {[%clk 0:02:15.2]} 11. b4 {[%clk
0:02:41.9]} 11... cxb4 {[%clk 0:02:10.8]} 12. cxb4 {[%clk 0:02:41.1]} 12... Nd5
{[%clk 0:02:06.1]} 13. Bxe7 {[%clk 0:02:37.3]} 13... Qxe7 {[%clk 0:02:07]} 14.
b5 {[%clk 0:02:18]} 14... Nc3 {[%clk 0:01:45.1]} 15. Bxh7+ {[%clk 0:02:13.8]}
15... Kh8 {[%clk 0:01:25.4]} 16. Qd3 {[%clk 0:02:12.5]} 16... Rfc8 {[%clk
0:01:16.7]} 17. Rfc1 {[%clk 0:02:01.1]} 17... Ne2+ {[%clk 0:00:30.8]} 18. Qxe2
{[%clk 0:01:59.4]} 18... Kxh7 {[%clk 0:00:30.4]} 19. h4 {[%clk 0:01:42.6]} 19...
Nf6 {[%clk 0:00:29.1]} 20. Nc4 {[%clk 0:01:36.3]} 20... axb5 {[%clk 0:00:27]}
21. Nxb6 {[%clk 0:01:27.5]} 21... Rxc1+ {[%clk 0:00:24.1]} 22. Rxc1 {[%clk
0:01:26.7]} 22... Ra5 {[%clk 0:00:16.7]} 23. Ng5+ {[%clk 0:01:19.3]} 23... Kg8
{[%clk 0:00:16.1]} 24. axb5 {[%clk 0:01:18.7]} 24... Qe8 {[%clk 0:00:12.1]} 25.
Rb1 {[%clk 0:00:58.8]} 25... e5 {[%clk 0:00:12.2]} 26. Qc4 {[%clk 0:00:47.2]}
26... exd4 {[%clk 0:00:09.7]} 27. exd4 {[%clk 0:00:44.3]} 27... Ra3 {[%clk
0:00:03.4]} 28. Qb4 {[%clk 0:00:32.7]} 28... Ra2 {[%clk 0:00:02.4]} 29. Qxd6
{[%clk 0:00:26.3]} 29... Qe2 {[%clk 0:00:02.9]} 30. Rf1 {[%clk 0:00:25.5]} 30...
Qg4 {[%clk 0:00:01.4]} 31. Qb8+ {[%clk 0:00:13.7]} 1-0

[Event "*** Titled Tuesday Blitz"]
[Site "Chess.com"]
[Date "2020.05.19"]
[Round "7"]
[White "stasiek18"]
[Black "top_bu_tz"]
[Result "1-0"]
[WhiteElo "2358"]
[BlackElo "2223"]
[TimeControl "180+1"]
[EndTime "13:20:15 PDT"]
[Termination "stasiek18 won by checkmate"]

1. e4 {[%clk 0:03:00.9]} 1... e5 {[%clk 0:02:59.8]} 2. Nf3 {[%clk 0:02:59.8]}
2... Nc6 {[%clk 0:02:58.3]} 3. d4 {[%clk 0:02:59.2]} 3... exd4 {[%clk
0:02:59.2]} 4. Nxd4 {[%clk 0:02:59.5]} 4... Bc5 {[%clk 0:02:39.6]} 5. Nb3 {[%clk
0:02:58.5]} 5... Bb6 {[%clk 0:02:39]} 6. Nc3 {[%clk 0:02:55.7]} 6... Nf6 {[%clk
0:02:38.4]} 7. Qe2 {[%clk 0:02:50.3]} 7... O-O {[%clk 0:02:32.7]} 8. Be3 {[%clk
0:02:43.4]} 8... Bxe3 {[%clk 0:02:28.2]} 9. Qxe3 {[%clk 0:02:43.4]} 9... Re8
{[%clk 0:02:29.1]} 10. O-O-O {[%clk 0:02:42.3]} 10... Qe7 {[%clk 0:02:08.2]} 11.
f3 {[%clk 0:02:35]} 11... d6 {[%clk 0:02:00.5]} 12. g4 {[%clk 0:02:32.5]} 12...
Be6 {[%clk 0:01:34.7]} 13. g5 {[%clk 0:02:17.9]} 13... Nd7 {[%clk 0:01:15.5]}
14. h4 {[%clk 0:02:17.4]} 14... a5 {[%clk 0:01:11.3]} 15. Bb5 {[%clk 0:01:46.6]}
15... Nc5 {[%clk 0:01:07.1]} 16. Nd4 {[%clk 0:01:43]} 16... Nxd4 {[%clk
0:01:04]} 17. Bxe8 {[%clk 0:01:32.2]} 17... Nxc2 {[%clk 0:00:45.3]} 18. Kxc2
{[%clk 0:01:19]} 18... Rxe8 {[%clk 0:00:33.8]} 19. h5 {[%clk 0:01:19.3]} 19...
b5 {[%clk 0:00:32.9]} 20. h6 {[%clk 0:01:16.3]} 20... b4 {[%clk 0:00:32.5]} 21.
Qd4 {[%clk 0:01:12.3]} 21... b3+ {[%clk 0:00:26.5]} 22. axb3 {[%clk 0:01:11.8]}
22... Bxb3+ {[%clk 0:00:26]} 23. Kb1 {[%clk 0:01:09]} 23... Ne6 {[%clk
0:00:26.3]} 24. Nd5 {[%clk 0:00:55.4]} 24... Qd8 {[%clk 0:00:23.4]} 25. Qc3
{[%clk 0:00:44.3]} 25... Bxd1 {[%clk 0:00:21.3]} 26. Rxd1 {[%clk 0:00:41.8]}
26... Qxg5 {[%clk 0:00:21.2]} 27. hxg7 {[%clk 0:00:40.1]} 27... Rb8 {[%clk
0:00:07]} 28. Nf6+ {[%clk 0:00:32]} 28... Kxg7 {[%clk 0:00:06.3]} 29. Nd7+
{[%clk 0:00:25]} 29... Kg8 {[%clk 0:00:04.2]} 30. Nxb8 {[%clk 0:00:24.6]} 30...
Qb5 {[%clk 0:00:03.6]} 31. Nc6 {[%clk 0:00:21.6]} 31... Nc5 {[%clk 0:00:02.8]}
32. Rg1+ {[%clk 0:00:18.3]} 32... Kf8 {[%clk 0:00:03.4]} 33. Qh8# {[%clk
0:00:17.6]} 1-0